[Event "Titled Tuesday Blitz April 18 Early 2023"]
[White "SashaKuzhilniy"]
[Black "Bilych, Olexiy"]
[BlackFideId "14156504"]
[WhiteElo "2573"]
[BlackElo "2320"]
[Result "0-1"]
[Round "11"]
[TimeControl "180+2"]
[Date "2023.04.18"]
[WhiteClock "0:00:01"]
[BlackClock "0:00:11"]

1. b3 {[%clk 0:03:00]}  g6 {[%clk 0:03:00]} 2. Bb2 {[%clk 0:03:00]}  Nf6 {[%clk 0:03:01]} 3. Nf3 {[%clk 0:03:00]}  Bg7 {[%clk 0:03:01]} 4. g3 {[%clk 0:03:00]}  O-O {[%clk 0:03:00]} 5. Bg2 {[%clk 0:03:00]}  d6 {[%clk 0:02:58]} 6. d4 {[%clk 0:02:59]}  e5 {[%clk 0:02:55]} 7. dxe5 {[%clk 0:02:57]}  Ng4 {[%clk 0:02:55]} 8. c4 {[%clk 0:02:52]}  dxe5 {[%clk 0:02:52]} 9. Qxd8 {[%clk 0:02:47]}  Rxd8 {[%clk 0:02:52]} 10. h3 {[%clk 0:02:46]}  Nxf2 {[%clk 0:02:18]} 11. Kxf2 {[%clk 0:02:42]}  e4 {[%clk 0:02:19]} 12. Bxg7 {[%clk 0:01:57]}  exf3 {[%clk 0:02:18]} 13. Bxf3 {[%clk 0:01:57]}  Kxg7 {[%clk 0:02:18]} 14. Nc3 {[%clk 0:01:57]}  c6 {[%clk 0:02:10]} 15. Rad1 {[%clk 0:01:52]}  Re8 {[%clk 0:02:08]} 16. Ne4 {[%clk 0:01:48]}  Na6 {[%clk 0:02:06]} 17. g4 {[%clk 0:01:36]}  h6 {[%clk 0:01:55]} 18. Rd6 {[%clk 0:01:34]}  Be6 {[%clk 0:01:48]} 19. Rhd1 {[%clk 0:01:33]}  Re7 {[%clk 0:01:46]} 20. h4 {[%clk 0:01:27]}  Bxg4 {[%clk 0:01:41]} 21. a3 {[%clk 0:00:59]}  Bf5 {[%clk 0:01:33]} 22. Ng3 {[%clk 0:00:51]}  Bc2 {[%clk 0:01:33]} 23. Rg1 {[%clk 0:00:51]}  Nc5 {[%clk 0:01:23]} 24. Rd2 {[%clk 0:00:46]}  Ne4+ {[%clk 0:01:18]} 25. Bxe4 {[%clk 0:00:41]}  Bxe4 {[%clk 0:01:19]} 26. Nh5+ {[%clk 0:00:40]}  Kh8 {[%clk 0:01:10]} 27. Nf6 {[%clk 0:00:39]}  Bf5 {[%clk 0:01:09]} 28. e4 {[%clk 0:00:36]}  Be6 {[%clk 0:01:05]} 29. Kf3 {[%clk 0:00:34]}  b5 {[%clk 0:00:58]} 30. cxb5 {[%clk 0:00:34]}  cxb5 {[%clk 0:00:59]} 31. b4 {[%clk 0:00:35]}  Rc8 {[%clk 0:00:55]} 32. Kf4 {[%clk 0:00:33]}  Bc4 {[%clk 0:00:49]} 33. Rd4 {[%clk 0:00:24]}  Re6 {[%clk 0:00:42]} 34. e5 {[%clk 0:00:18]}  Rxf6+ {[%clk 0:00:37]} 35. exf6 {[%clk 0:00:18]}  Rc6 {[%clk 0:00:37]} 36. Ke3 {[%clk 0:00:10]}  Rxf6 {[%clk 0:00:36]} 37. Rf4 {[%clk 0:00:08]}  Rd6 {[%clk 0:00:34]} 38. Rd4 {[%clk 0:00:08]}  Ra6 {[%clk 0:00:33]} 39. Ra1 {[%clk 0:00:07]}  Kg7 {[%clk 0:00:32]} 40. a4 {[%clk 0:00:08]}  Re6+ {[%clk 0:00:32]} 41. Re4 {[%clk 0:00:08]}  Rxe4+ {[%clk 0:00:20]} 42. Kxe4 {[%clk 0:00:09]}  bxa4 {[%clk 0:00:16]} 43. Rxa4 {[%clk 0:00:08]}  a6 {[%clk 0:00:17]} 44. Ra1 {[%clk 0:00:07]}  Kf6 {[%clk 0:00:16]} 45. Rc1 {[%clk 0:00:06]}  Bb5 {[%clk 0:00:16]} 46. Kf3 {[%clk 0:00:04]}  g5 {[%clk 0:00:14]} 47. Kg3 {[%clk 0:00:04]}  Kg6 {[%clk 0:00:13]} 48. Rd1 {[%clk 0:00:03]}  f5 {[%clk 0:00:13]} 49. Rd6+ {[%clk 0:00:04]}  Kh5 {[%clk 0:00:13]} 50. hxg5 {[%clk 0:00:01]}  hxg5 {[%clk 0:00:14]} 51. Rd5 {[%clk 0:00:01]}  f4+ {[%clk 0:00:14]} 52. Kf2 {[%clk 0:00:01]}  Kg4 {[%clk 0:00:11]} 0-1


[Site "https://www.chess.com"]

[Event "Titled Tuesday Blitz April 18 Early 2023"]
[White "Rios Escobar, Adan"]
[Black "Toropov, Pavel"]
[WhiteFideId "3403645"]
[BlackFideId "24129178"]
[WhiteElo "2491"]
[BlackElo "2182"]
[Result "1-0"]
[Round "11"]
[TimeControl "180+2"]
[Date "2023.04.18"]
[WhiteClock "0:00:07"]
[BlackClock "0:00:31"]

1. d4 {[%clk 0:02:56]}  d5 {[%clk 0:02:59]} 2. g3 {[%clk 0:02:56]}  Nf6 {[%clk 0:02:57]} 3. Nf3 {[%clk 0:02:55]}  Bf5 {[%clk 0:02:56]} 4. c4 {[%clk 0:02:56]}  e6 {[%clk 0:02:56]} 5. Nc3 {[%clk 0:02:55]}  c6 {[%clk 0:02:56]} 6. Nh4 {[%clk 0:02:56]}  Be4 {[%clk 0:02:56]} 7. f3 {[%clk 0:02:56]}  Bg6 {[%clk 0:02:56]} 8. Qb3 {[%clk 0:02:56]}  Qc7 {[%clk 0:02:52]} 9. Nxg6 {[%clk 0:02:53]}  hxg6 {[%clk 0:02:52]} 10. e4 {[%clk 0:02:45]}  dxe4 {[%clk 0:02:51]} 11. Bf4 {[%clk 0:02:43]}  Qb6 {[%clk 0:02:48]} 12. fxe4 {[%clk 0:02:39]}  Nbd7 {[%clk 0:02:42]} 13. e5 {[%clk 0:02:22]}  Nh5 {[%clk 0:02:39]} 14. c5 {[%clk 0:02:14]}  Qxb3 {[%clk 0:02:33]} 15. axb3 {[%clk 0:02:15]}  g5 {[%clk 0:02:21]} 16. Bxg5 {[%clk 0:02:13]}  Nxg3 {[%clk 0:02:21]} 17. Rg1 {[%clk 0:02:07]}  Nf5 {[%clk 0:02:17]} 18. O-O-O {[%clk 0:01:45]}  Rxh2 {[%clk 0:02:15]} 19. Ne4 {[%clk 0:01:43]}  b6 {[%clk 0:02:02]} 20. b4 {[%clk 0:01:40]}  a5 {[%clk 0:01:53]} 21. b5 {[%clk 0:01:37]}  Rc8 {[%clk 0:01:50]} 22. bxc6 {[%clk 0:01:36]}  Rxc6 {[%clk 0:01:45]} 23. Bb5 {[%clk 0:01:36]}  Rc7 {[%clk 0:01:43]} 24. Nd6+ {[%clk 0:01:30]}  Bxd6 {[%clk 0:01:31]} 25. exd6 {[%clk 0:01:22]}  Nxd6 {[%clk 0:01:31]} 26. Bf4 {[%clk 0:01:22]}  Nxb5 {[%clk 0:01:21]} 27. Bxh2 {[%clk 0:01:18]}  Rc6 {[%clk 0:01:18]} 28. Rxg7 {[%clk 0:01:09]}  bxc5 {[%clk 0:01:16]} 29. d5 {[%clk 0:01:09]}  exd5 {[%clk 0:01:14]} 30. Rxd5 {[%clk 0:01:02]}  Nd4 {[%clk 0:01:12]} 31. Bd6 {[%clk 0:00:51]}  Nf6 {[%clk 0:01:00]} 32. Re5+ {[%clk 0:00:30]}  Ne6 {[%clk 0:01:00]} 33. Bb8 {[%clk 0:00:16]}  Rb6 {[%clk 0:00:42]} 34. Ba7 {[%clk 0:00:14]}  Rb7 {[%clk 0:00:42]} 35. Bxc5 {[%clk 0:00:08]}  Rc7 {[%clk 0:00:42]} 36. Rxe6+ {[%clk 0:00:08]}  Kd8 {[%clk 0:00:35]} 37. Rxf6 {[%clk 0:00:07]}  Rxc5+ {[%clk 0:00:34]} 38. Kb1 {[%clk 0:00:07]}  Ke7 {[%clk 0:00:34]} 39. Rgxf7+ {[%clk 0:00:07]}  Ke8 {[%clk 0:00:34]} 40. Ra7 {[%clk 0:00:07]}  Rb5 {[%clk 0:00:31]} 41. Rh6 {[%clk 0:00:07]} 1-0


[Site "https://www.chess.com"]

[Event "Titled Tuesday Blitz April 18 Early 2023"]
[White "Dwilewicz, Katarzyna"]
[Black "Tregubov, Pavel V."]
[WhiteFideId "1148486"]
[BlackFideId "4115341"]
[WhiteElo "2065"]
[BlackElo "2425"]
[Result "0-1"]
[Round "11"]
[TimeControl "180+2"]
[Date "2023.04.18"]
[WhiteClock "0:00:02"]
[BlackClock "0:00:12"]

1. e4 {[%clk 0:02:58]}  c5 {[%clk 0:02:59]} 2. Nf3 {[%clk 0:02:57]}  e6 {[%clk 0:02:59]} 3. g3 {[%clk 0:02:57]}  d5 {[%clk 0:02:57]} 4. exd5 {[%clk 0:02:56]}  exd5 {[%clk 0:02:58]} 5. Bg2 {[%clk 0:02:57]}  Qe7+ {[%clk 0:02:56]} 6. Qe2 {[%clk 0:02:56]}  Qxe2+ {[%clk 0:02:56]} 7. Kxe2 {[%clk 0:02:57]}  Nc6 {[%clk 0:02:56]} 8. Re1 {[%clk 0:02:53]}  Bd6 {[%clk 0:02:44]} 9. Nc3 {[%clk 0:02:46]}  Nge7 {[%clk 0:02:44]} 10. a3 {[%clk 0:02:30]}  O-O {[%clk 0:02:43]} 11. d3 {[%clk 0:02:29]}  Bg4 {[%clk 0:02:41]} 12. Kf1 {[%clk 0:02:22]}  h6 {[%clk 0:02:33]} 13. h3 {[%clk 0:02:21]}  Be6 {[%clk 0:02:32]} 14. Bd2 {[%clk 0:02:15]}  Rac8 {[%clk 0:02:32]} 15. Ne2 {[%clk 0:02:08]}  g5 {[%clk 0:02:26]} 16. h4 {[%clk 0:02:03]}  g4 {[%clk 0:02:20]} 17. Nfg1 {[%clk 0:01:58]}  Nf5 {[%clk 0:02:11]} 18. c3 {[%clk 0:01:44]}  Na5 {[%clk 0:01:41]} 19. Bf4 {[%clk 0:01:35]}  Nb3 {[%clk 0:01:38]} 20. Rad1 {[%clk 0:01:34]}  Be7 {[%clk 0:01:30]} 21. Nc1 {[%clk 0:01:28]}  Nxc1 {[%clk 0:01:17]} 22. Bxc1 {[%clk 0:01:28]}  Bd7 {[%clk 0:01:02]} 23. Bxd5 {[%clk 0:01:15]}  Ba4 {[%clk 0:00:51]} 24. b3 {[%clk 0:01:12]}  Bc6 {[%clk 0:00:51]} 25. Bxc6 {[%clk 0:01:08]}  Rxc6 {[%clk 0:00:51]} 26. Ne2 {[%clk 0:00:56]}  Bf6 {[%clk 0:00:51]} 27. Bb2 {[%clk 0:00:41]}  Rd8 {[%clk 0:00:49]} 28. Nf4 {[%clk 0:00:40]}  Rb6 {[%clk 0:00:39]} 29. b4 {[%clk 0:00:40]}  a5 {[%clk 0:00:39]} 30. Re2 {[%clk 0:00:28]}  axb4 {[%clk 0:00:38]} 31. axb4 {[%clk 0:00:25]}  cxb4 {[%clk 0:00:39]} 32. cxb4 {[%clk 0:00:25]}  Nd4 {[%clk 0:00:31]} 33. Bxd4 {[%clk 0:00:21]}  Rxd4 {[%clk 0:00:30]} 34. Re4 {[%clk 0:00:16]}  Rbxb4 {[%clk 0:00:27]} 35. Rxd4 {[%clk 0:00:16]}  Bxd4 {[%clk 0:00:25]} 36. Rd2 {[%clk 0:00:10]}  Rb2 {[%clk 0:00:19]} 37. Ke2 {[%clk 0:00:10]}  Rxd2+ {[%clk 0:00:18]} 38. Kxd2 {[%clk 0:00:10]}  Bxf2 {[%clk 0:00:19]} 39. Ne2 {[%clk 0:00:10]}  Kg7 {[%clk 0:00:18]} 40. Kc3 {[%clk 0:00:09]}  Kf6 {[%clk 0:00:18]} 41. Kc4 {[%clk 0:00:10]}  Ke5 {[%clk 0:00:17]} 42. Kb5 {[%clk 0:00:05]}  f5 {[%clk 0:00:16]} 43. Kc4 {[%clk 0:00:04]}  h5 {[%clk 0:00:16]} 44. d4+ {[%clk 0:00:04]}  Ke4 {[%clk 0:00:13]} 45. d5 {[%clk 0:00:04]}  Ke5 {[%clk 0:00:13]} 46. Nc1 {[%clk 0:00:01]}  Bxg3 {[%clk 0:00:13]} 47. Nd3+ {[%clk 0:00:02]}  Kd6 {[%clk 0:00:13]} 48. Kd4 {[%clk 0:00:02]}  Bxh4 {[%clk 0:00:12]} 0-1


[Site "https://www.chess.com"]

[Event "Titled Tuesday Blitz April 18 Early 2023"]
[White "micke12a"]
[Black "Kucuksari, Kaan"]
[BlackFideId "6380166"]
[WhiteElo "2373"]
[BlackElo "2364"]
[Result "0-1"]
[Round "11"]
[TimeControl "180+2"]
[Date "2023.04.18"]
[WhiteClock "0:00:11"]
[BlackClock "0:00:10"]

1. Nf3 {[%clk 0:03:00]}  d5 {[%clk 0:02:56]} 2. e3 {[%clk 0:02:58]}  c5 {[%clk 0:02:55]} 3. c4 {[%clk 0:02:53]}  d4 {[%clk 0:02:54]} 4. exd4 {[%clk 0:02:53]}  cxd4 {[%clk 0:02:54]} 5. d3 {[%clk 0:02:54]}  Nc6 {[%clk 0:02:54]} 6. g3 {[%clk 0:02:54]}  e5 {[%clk 0:02:48]} 7. Bg2 {[%clk 0:02:55]}  Nf6 {[%clk 0:02:43]} 8. O-O {[%clk 0:02:55]}  Be7 {[%clk 0:02:42]} 9. Re1 {[%clk 0:02:55]}  Nd7 {[%clk 0:02:42]} 10. a3 {[%clk 0:02:54]}  a5 {[%clk 0:02:42]} 11. Nbd2 {[%clk 0:02:52]}  O-O {[%clk 0:02:40]} 12. Rb1 {[%clk 0:02:52]}  Nc5 {[%clk 0:02:31]} 13. Qc2 {[%clk 0:02:43]}  Bf5 {[%clk 0:02:30]} 14. Bf1 {[%clk 0:02:39]}  Bd6 {[%clk 0:02:10]} 15. Nh4 {[%clk 0:02:12]}  Bg6 {[%clk 0:01:51]} 16. Nxg6 {[%clk 0:02:09]}  fxg6 {[%clk 0:01:52]} 17. b4 {[%clk 0:02:09]}  axb4 {[%clk 0:01:50]} 18. axb4 {[%clk 0:02:09]}  Qf6 {[%clk 0:01:50]} 19. Re2 {[%clk 0:01:59]}  Nxb4 {[%clk 0:01:48]} 20. Rxb4 {[%clk 0:01:58]}  Nxd3 {[%clk 0:01:36]} 21. Qxd3 {[%clk 0:01:26]}  Bxb4 {[%clk 0:01:36]} 22. Ne4 {[%clk 0:01:26]}  Qf3 {[%clk 0:01:34]} 23. Qb1 {[%clk 0:01:19]}  Bc3 {[%clk 0:01:11]} 24. Ng5 {[%clk 0:01:08]}  Qf5 {[%clk 0:01:04]} 25. Qxb7 {[%clk 0:00:53]}  Ra1 {[%clk 0:01:02]} 26. Qd5+ {[%clk 0:00:42]}  Kh8 {[%clk 0:01:00]} 27. Bh3 {[%clk 0:00:01]}  Rxc1+ {[%clk 0:00:59]} 28. Kg2 {[%clk 0:00:02]}  Qxg5 {[%clk 0:00:53]} 29. f4 {[%clk 0:00:02]}  exf4 {[%clk 0:00:29]} 30. Qxg5 {[%clk 0:00:02]}  f3+ {[%clk 0:00:30]} 31. Kf2 {[%clk 0:00:02]}  fxe2+ {[%clk 0:00:31]} 32. Kxe2 {[%clk 0:00:03]}  Re1+ {[%clk 0:00:31]} 33. Kd3 {[%clk 0:00:04]}  Rf3+ {[%clk 0:00:28]} 34. Kc2 {[%clk 0:00:04]}  Re2+ {[%clk 0:00:19]} 35. Kd1 {[%clk 0:00:04]}  Rd2+ {[%clk 0:00:16]} 36. Kc1 {[%clk 0:00:04]}  Rf8 {[%clk 0:00:12]} 37. Qxd2 {[%clk 0:00:04]}  Bxd2+ {[%clk 0:00:12]} 38. Kxd2 {[%clk 0:00:05]}  Rf2+ {[%clk 0:00:12]} 39. Kd3 {[%clk 0:00:06]}  Rxh2 {[%clk 0:00:13]} 40. Bg4 {[%clk 0:00:05]}  Rg2 {[%clk 0:00:12]} 41. Kxd4 {[%clk 0:00:06]}  Rxg3 {[%clk 0:00:12]} 42. Be6 {[%clk 0:00:07]}  Rg1 {[%clk 0:00:08]} 43. c5 {[%clk 0:00:07]}  Rd1+ {[%clk 0:00:08]} 44. Ke5 {[%clk 0:00:07]}  Rc1 {[%clk 0:00:07]} 45. Kd6 {[%clk 0:00:07]}  h5 {[%clk 0:00:08]} 46. c6 {[%clk 0:00:05]}  g5 {[%clk 0:00:08]} 47. c7 {[%clk 0:00:05]}  g4 {[%clk 0:00:08]} 48. c8=Q+ {[%clk 0:00:06]}  Rxc8 {[%clk 0:00:08]} 49. Bxc8 {[%clk 0:00:07]}  Kh7 {[%clk 0:00:07]} 50. Ke5 {[%clk 0:00:07]}  Kg6 {[%clk 0:00:07]} 51. Kf4 {[%clk 0:00:07]}  Kf6 {[%clk 0:00:07]} 52. Bxg4 {[%clk 0:00:07]}  hxg4 {[%clk 0:00:07]} 53. Kxg4 {[%clk 0:00:07]}  Kg6 {[%clk 0:00:08]} 54. Kh4 {[%clk 0:00:07]}  Kf5 {[%clk 0:00:08]} 55. Kg3 {[%clk 0:00:05]}  Kg5 {[%clk 0:00:08]} 56. Kh3 {[%clk 0:00:06]}  Kf4 {[%clk 0:00:08]} 57. Kg2 {[%clk 0:00:07]}  Kg4 {[%clk 0:00:09]} 58. Kh2 {[%clk 0:00:08]}  Kf3 {[%clk 0:00:08]} 59. Kh3 {[%clk 0:00:09]}  g5 {[%clk 0:00:08]} 60. Kh2 {[%clk 0:00:09]}  g4 {[%clk 0:00:08]} 61. Kg1 {[%clk 0:00:09]}  Kg3 {[%clk 0:00:08]} 62. Kh1 {[%clk 0:00:10]}  Kf2 {[%clk 0:00:08]} 63. Kh2 {[%clk 0:00:10]}  g3+ {[%clk 0:00:09]} 64. Kh3 {[%clk 0:00:11]}  g2 {[%clk 0:00:10]} 0-1


[Site "https://www.chess.com"]

[Event "Titled Tuesday Blitz April 18 Early 2023"]
[White "Krsnik Cohar, Ivan Vihor"]
[Black "Aydincelebi, Kagan"]
[WhiteFideId "14520044"]
[BlackFideId "6361102"]
[WhiteElo "2414"]
[BlackElo "2180"]
[Result "0-1"]
[Round "11"]
[TimeControl "180+2"]
[Date "2023.04.18"]
[WhiteClock "0:00:03"]
[BlackClock "0:00:32"]

1. e4 {[%clk 0:03:00]}  c5 {[%clk 0:02:58]} 2. Ne2 {[%clk 0:03:01]}  Nc6 {[%clk 0:02:58]} 3. g3 {[%clk 0:03:01]}  Nf6 {[%clk 0:02:59]} 4. Bg2 {[%clk 0:03:01]}  g6 {[%clk 0:02:59]} 5. c3 {[%clk 0:03:01]}  Bg7 {[%clk 0:02:58]} 6. d4 {[%clk 0:03:01]}  cxd4 {[%clk 0:02:59]} 7. cxd4 {[%clk 0:03:02]}  d6 {[%clk 0:02:57]} 8. Nbc3 {[%clk 0:03:02]}  O-O {[%clk 0:02:58]} 9. h3 {[%clk 0:03:02]}  e5 {[%clk 0:02:54]} 10. Be3 {[%clk 0:03:02]}  exd4 {[%clk 0:02:48]} 11. Nxd4 {[%clk 0:03:03]}  Re8 {[%clk 0:02:49]} 12. O-O {[%clk 0:03:03]}  a6 {[%clk 0:02:47]} 13. Qd2 {[%clk 0:03:02]}  Ne5 {[%clk 0:02:42]} 14. b3 {[%clk 0:03:02]}  Qa5 {[%clk 0:02:41]} 15. Rfd1 {[%clk 0:03:00]}  Bd7 {[%clk 0:02:39]} 16. Rac1 {[%clk 0:02:55]}  Rac8 {[%clk 0:02:37]} 17. f4 {[%clk 0:02:45]}  Nc6 {[%clk 0:02:32]} 18. Nde2 {[%clk 0:02:45]}  Red8 {[%clk 0:02:27]} 19. Nd5 {[%clk 0:02:35]}  Qxd2 {[%clk 0:02:28]} 20. Nxf6+ {[%clk 0:02:31]}  Bxf6 {[%clk 0:02:27]} 21. Rxd2 {[%clk 0:02:32]}  Be7 {[%clk 0:02:20]} 22. Bb6 {[%clk 0:02:26]}  Re8 {[%clk 0:02:20]} 23. e5 {[%clk 0:02:27]}  Bf8 {[%clk 0:01:45]} 24. Kf2 {[%clk 0:02:03]}  Re6 {[%clk 0:01:35]} 25. Rcd1 {[%clk 0:01:41]}  Nb4 {[%clk 0:01:16]} 26. Bxb7 {[%clk 0:01:38]}  Rb8 {[%clk 0:01:16]} 27. Bc7 {[%clk 0:01:17]}  Rxb7 {[%clk 0:01:15]} 28. Bxd6 {[%clk 0:01:17]}  Bxd6 {[%clk 0:01:15]} 29. Rxd6 {[%clk 0:01:17]}  Rxd6 {[%clk 0:01:15]} 30. Rxd6 {[%clk 0:01:17]}  Bxh3 {[%clk 0:01:11]} 31. a3 {[%clk 0:01:12]}  Nc2 {[%clk 0:01:11]} 32. Rxa6 {[%clk 0:01:00]}  Rxb3 {[%clk 0:01:10]} 33. a4 {[%clk 0:01:01]}  Rb2 {[%clk 0:01:11]} 34. Rd6 {[%clk 0:00:55]}  Bg4 {[%clk 0:01:05]} 35. Nc3 {[%clk 0:00:55]}  Rb3 {[%clk 0:01:03]} 36. Ne4 {[%clk 0:00:50]}  Rf3+ {[%clk 0:00:53]} 37. Kg1 {[%clk 0:00:50]}  Ne3 {[%clk 0:00:44]} 38. Nf6+ {[%clk 0:00:14]}  Kg7 {[%clk 0:00:42]} 39. Rd8 {[%clk 0:00:05]}  Rf1+ {[%clk 0:00:41]} 40. Kh2 {[%clk 0:00:05]}  Bf3 {[%clk 0:00:39]} 41. g4 {[%clk 0:00:03]}  Nxg4+ {[%clk 0:00:32]} 0-1


[Site "https://www.chess.com"]

[Event "Titled Tuesday Blitz April 18 Early 2023"]
[White "Korchmar, Vasiliy"]
[Black "Hajiyev, Kanan"]
[WhiteFideId "24131750"]
[BlackFideId "13404148"]
[WhiteElo "2370"]
[BlackElo "2103"]
[Result "1-0"]
[Round "11"]
[TimeControl "180+2"]
[Date "2023.04.18"]
[WhiteClock "0:00:21"]
[BlackClock "0:00:03"]

1. e4 {[%clk 0:03:00]}  c6 {[%clk 0:02:59]} 2. d4 {[%clk 0:02:58]}  d5 {[%clk 0:03:00]} 3. exd5 {[%clk 0:02:58]}  cxd5 {[%clk 0:03:01]} 4. Bd3 {[%clk 0:02:58]}  Nc6 {[%clk 0:03:01]} 5. c3 {[%clk 0:02:57]}  Qc7 {[%clk 0:03:01]} 6. h3 {[%clk 0:02:54]}  Nf6 {[%clk 0:03:01]} 7. Nf3 {[%clk 0:02:54]}  g6 {[%clk 0:03:01]} 8. O-O {[%clk 0:02:54]}  Bg7 {[%clk 0:03:01]} 9. Re1 {[%clk 0:02:45]}  O-O {[%clk 0:03:01]} 10. Bg5 {[%clk 0:02:45]}  Bf5 {[%clk 0:02:59]} 11. Bxf5 {[%clk 0:02:45]}  gxf5 {[%clk 0:03:00]} 12. Bxf6 {[%clk 0:02:38]}  Bxf6 {[%clk 0:03:01]} 13. Nbd2 {[%clk 0:02:33]}  e6 {[%clk 0:02:56]} 14. Nf1 {[%clk 0:02:33]}  Rab8 {[%clk 0:02:52]} 15. Ng3 {[%clk 0:02:29]}  Kh8 {[%clk 0:02:21]} 16. Nh5 {[%clk 0:02:28]}  Qe7 {[%clk 0:02:19]} 17. Qd2 {[%clk 0:02:28]}  Rg8 {[%clk 0:02:07]} 18. Qf4 {[%clk 0:02:25]}  Bg5 {[%clk 0:01:50]} 19. Qh2 {[%clk 0:02:13]}  Rbc8 {[%clk 0:01:30]} 20. c4 {[%clk 0:02:12]}  dxc4 {[%clk 0:01:26]} 21. d5 {[%clk 0:02:13]}  Nd8 {[%clk 0:01:15]} 22. d6 {[%clk 0:02:02]}  Qd7 {[%clk 0:01:04]} 23. Ne5 {[%clk 0:01:57]}  Qb5 {[%clk 0:00:31]} 24. h4 {[%clk 0:01:47]}  Bd2 {[%clk 0:00:25]} 25. Red1 {[%clk 0:01:36]}  Qxb2 {[%clk 0:00:23]} 26. Rab1 {[%clk 0:01:35]}  Qc3 {[%clk 0:00:07]} 27. Rxb7 {[%clk 0:00:47]}  f4 {[%clk 0:00:07]} 28. Nxf7+ {[%clk 0:00:34]}  Nxf7 {[%clk 0:00:07]} 29. Rxf7 {[%clk 0:00:35]}  Qd3 {[%clk 0:00:04]} 30. Nf6 {[%clk 0:00:32]}  Rg7 {[%clk 0:00:04]} 31. Rxg7 {[%clk 0:00:32]}  Kxg7 {[%clk 0:00:05]} 32. Nh5+ {[%clk 0:00:32]}  Kh6 {[%clk 0:00:04]} 33. Nxf4 {[%clk 0:00:31]}  Qxd6 {[%clk 0:00:04]} 34. Rxd2 {[%clk 0:00:20]}  Qxd2 {[%clk 0:00:04]} 35. Qg3 {[%clk 0:00:21]}  Qc1+ {[%clk 0:00:03]} 36. Kh2 {[%clk 0:00:22]}  c3 {[%clk 0:00:03]} 37. Qg5# {[%clk 0:00:21]} 1-0


[Site "https://www.chess.com"]

[Event "Titled Tuesday Blitz April 18 Early 2023"]
[White "Kosteniuk, Alexandra"]
[Black "Devaev, Alexander"]
[WhiteFideId "4128125"]
[BlackFideId "4169395"]
[WhiteElo "2453"]
[BlackElo "2204"]
[Result "1-0"]
[Round "11"]
[TimeControl "180+2"]
[Date "2023.04.18"]
[WhiteClock "0:00:44"]
[BlackClock "0:00:01"]

1. e4 {[%clk 0:03:00]}  c6 {[%clk 0:02:57]} 2. Nc3 {[%clk 0:02:59]}  d5 {[%clk 0:02:56]} 3. Nf3 {[%clk 0:03:00]}  Nf6 {[%clk 0:02:48]} 4. e5 {[%clk 0:02:59]}  Ne4 {[%clk 0:02:49]} 5. d4 {[%clk 0:02:57]}  Nxc3 {[%clk 0:02:47]} 6. bxc3 {[%clk 0:02:57]}  b6 {[%clk 0:02:47]} 7. Bd3 {[%clk 0:02:56]}  e6 {[%clk 0:02:39]} 8. O-O {[%clk 0:02:53]}  Be7 {[%clk 0:02:39]} 9. a4 {[%clk 0:02:50]}  Ba6 {[%clk 0:02:40]} 10. Re1 {[%clk 0:02:47]}  c5 {[%clk 0:02:36]} 11. Bb5+ {[%clk 0:02:45]}  Bxb5 {[%clk 0:02:34]} 12. axb5 {[%clk 0:02:45]}  a5 {[%clk 0:02:31]} 13. bxa6 {[%clk 0:02:44]}  Rxa6 {[%clk 0:02:31]} 14. Rb1 {[%clk 0:02:42]}  O-O {[%clk 0:02:28]} 15. h4 {[%clk 0:02:34]}  Nc6 {[%clk 0:02:05]} 16. g3 {[%clk 0:02:20]}  Qa8 {[%clk 0:01:49]} 17. Kg2 {[%clk 0:02:17]}  cxd4 {[%clk 0:01:29]} 18. cxd4 {[%clk 0:02:16]}  Na5 {[%clk 0:00:37]} 19. Qd3 {[%clk 0:02:13]}  Nc4 {[%clk 0:00:35]} 20. Ng5 {[%clk 0:01:58]}  Bxg5 {[%clk 0:00:27]} 21. hxg5 {[%clk 0:01:59]}  Ra1 {[%clk 0:00:20]} 22. Rh1 {[%clk 0:01:58]}  g6 {[%clk 0:00:19]} 23. c3 {[%clk 0:01:44]}  Rxb1 {[%clk 0:00:19]} 24. Qxb1 {[%clk 0:01:45]}  Qc6 {[%clk 0:00:15]} 25. Qd3 {[%clk 0:01:38]}  Qc7 {[%clk 0:00:12]} 26. Qf3 {[%clk 0:01:38]}  Qe7 {[%clk 0:00:11]} 27. Qg4 {[%clk 0:01:27]}  Rc8 {[%clk 0:00:10]} 28. Qh3 {[%clk 0:01:27]}  h5 {[%clk 0:00:10]} 29. gxh6 {[%clk 0:01:27]}  Kh7 {[%clk 0:00:11]} 30. Qg4 {[%clk 0:01:26]}  Na5 {[%clk 0:00:09]} 31. Qf3 {[%clk 0:01:25]}  Nb3 {[%clk 0:00:08]} 32. Bg5 {[%clk 0:01:24]}  Qd7 {[%clk 0:00:07]} 33. Rb1 {[%clk 0:01:20]}  Na5 {[%clk 0:00:05]} 34. Rxb6 {[%clk 0:01:19]}  Nc4 {[%clk 0:00:06]} 35. Rb4 {[%clk 0:01:02]}  Rg8 {[%clk 0:00:05]} 36. Qd1 {[%clk 0:00:59]}  Rc8 {[%clk 0:00:05]} 37. Qb1 {[%clk 0:00:57]}  Rc7 {[%clk 0:00:04]} 38. Qa2 {[%clk 0:00:54]}  Ra7 {[%clk 0:00:03]} 39. Qb1 {[%clk 0:00:48]}  Qc7 {[%clk 0:00:03]} 40. Bf6 {[%clk 0:00:45]}  Qd7 {[%clk 0:00:01]} 41. Rb8 {[%clk 0:00:44]} 1-0


[Site "https://www.chess.com"]

[Event "Titled Tuesday Blitz April 18 Early 2023"]
[White "O`Gorman, Tom"]
[Black "b_6"]
[WhiteFideId "2508249"]
[WhiteElo "2271"]
[BlackElo "2491"]
[Result "1/2-1/2"]
[Round "11"]
[TimeControl "180+2"]
[Date "2023.04.18"]
[WhiteClock "0:00:51"]
[BlackClock "0:00:25"]

1. e4 {[%clk 0:02:34]}  e6 {[%clk 0:03:00]} 2. d4 {[%clk 0:02:17]}  d5 {[%clk 0:02:59]} 3. Bd3 {[%clk 0:02:18]}  dxe4 {[%clk 0:02:59]} 4. Bxe4 {[%clk 0:02:19]}  Nf6 {[%clk 0:02:59]} 5. Bf3 {[%clk 0:02:18]}  c5 {[%clk 0:02:59]} 6. Ne2 {[%clk 0:02:18]}  Nc6 {[%clk 0:03:00]} 7. Be3 {[%clk 0:02:17]}  Nd5 {[%clk 0:02:59]} 8. Bxd5 {[%clk 0:02:07]}  Qxd5 {[%clk 0:02:59]} 9. O-O {[%clk 0:02:05]}  cxd4 {[%clk 0:02:53]} 10. Nxd4 {[%clk 0:02:05]}  Bd7 {[%clk 0:02:52]} 11. Nc3 {[%clk 0:02:05]}  Qe5 {[%clk 0:02:40]} 12. Nf3 {[%clk 0:02:03]}  Qh5 {[%clk 0:02:29]} 13. a4 {[%clk 0:01:46]}  O-O-O {[%clk 0:02:13]} 14. Nb5 {[%clk 0:01:44]}  Be8 {[%clk 0:01:50]} 15. Qe1 {[%clk 0:01:40]}  a6 {[%clk 0:01:28]} 16. Qc3 {[%clk 0:01:37]}  Bb4 {[%clk 0:01:23]} 17. Na7+ {[%clk 0:01:36]}  Kc7 {[%clk 0:01:08]} 18. Qc4 {[%clk 0:01:36]}  Qd5 {[%clk 0:01:05]} 19. Qxd5 {[%clk 0:01:30]}  Rxd5 {[%clk 0:01:05]} 20. Nxc6 {[%clk 0:01:30]}  Bxc6 {[%clk 0:01:04]} 21. Nd4 {[%clk 0:01:30]}  Be8 {[%clk 0:00:55]} 22. c3 {[%clk 0:01:30]}  Be7 {[%clk 0:00:55]} 23. Rfd1 {[%clk 0:01:28]}  Bf6 {[%clk 0:00:53]} 24. b3 {[%clk 0:01:12]}  Kc8 {[%clk 0:00:48]} 25. Rac1 {[%clk 0:01:12]}  Bxd4 {[%clk 0:00:41]} 26. Rxd4 {[%clk 0:01:09]}  Bc6 {[%clk 0:00:37]} 27. Rxd5 {[%clk 0:01:07]}  Bxd5 {[%clk 0:00:37]} 28. c4 {[%clk 0:01:08]}  Bc6 {[%clk 0:00:37]} 29. Rd1 {[%clk 0:01:07]}  Rd8 {[%clk 0:00:36]} 30. Rxd8+ {[%clk 0:01:07]}  Kxd8 {[%clk 0:00:37]} 31. a5 {[%clk 0:01:07]}  Kd7 {[%clk 0:00:36]} 32. f4 {[%clk 0:01:05]}  Be4 {[%clk 0:00:36]} 33. Bd4 {[%clk 0:01:04]}  f6 {[%clk 0:00:34]} 34. Kf2 {[%clk 0:01:04]}  Bc2 {[%clk 0:00:35]} 35. b4 {[%clk 0:01:04]}  Bd3 {[%clk 0:00:33]} 36. c5 {[%clk 0:01:04]}  Kc6 {[%clk 0:00:33]} 37. Ke3 {[%clk 0:01:04]}  Bf1 {[%clk 0:00:31]} 38. g4 {[%clk 0:01:04]}  Kb5 {[%clk 0:00:29]} 39. Bc3 {[%clk 0:01:03]}  Kc4 {[%clk 0:00:29]} 40. Be1 {[%clk 0:01:02]}  f5 {[%clk 0:00:25]} 41. g5 {[%clk 0:01:00]}  g6 {[%clk 0:00:25]} 42. h4 {[%clk 0:00:59]}  Bd3 {[%clk 0:00:24]} 43. Bd2 {[%clk 0:00:59]}  Be4 {[%clk 0:00:25]} 44. Be1 {[%clk 0:00:54]}  Bd5 {[%clk 0:00:25]} 45. Bd2 {[%clk 0:00:51]} 1/2-1/2


[Site "https://www.chess.com"]